{"text_format":"1","workbook":"xlsx","n_sheets":2,"sheets":["Pracovní výkaz","List1"],"not_rendered":{"charts":0,"images":7,"macros":1,"external_links":0,"defined_names":6,"comments":1,"pivot_tables":0},"unopened":[],"bounds":{"document_bytes":16777216,"sheet_cells":100000,"rows_first":2000,"rows_last":500,"rows_between":2000,"halvings":0,"cell_chars":16384,"cell_head_chars":4096},"cells_cut":0,"cells_raw":0,"read":"whole","date_system":"1900"}

{"sheet":"Pracovní výkaz","index":0,"n_rows":67,"n_cols":14,"rows_kept":67,"cut":false,"hidden":false,"merged":[[72,0,74,8],[58,0,60,3],[56,5,56,7],[62,0,62,2],[62,5,62,7],[63,5,63,7],[64,0,64,2],[64,5,64,7],[53,0,53,2],[53,5,53,6],[53,7,53,8],[54,0,54,8],[55,0,55,3],[55,5,55,7],[52,0,52,2],[52,5,52,6],[52,7,52,8],[45,3,45,8],[46,3,46,8],[47,2,47,6],[47,7,47,8],[48,0,48,8],[49,0,49,3],[49,5,49,8],[50,0,50,2],[50,5,50,6],[50,7,50,8],[51,5,51,6],[51,7,51,8],[44,3,44,8],[33,3,33,8],[34,3,34,8],[35,3,35,8],[36,3,36,8],[37,3,37,8],[38,3,38,8],[39,3,39,8],[40,3,40,8],[41,3,41,8],[42,3,42,8],[43,3,43,8],[32,3,32,8],[21,3,21,8],[22,3,22,8],[23,3,23,8],[24,3,24,8],[25,3,25,8],[26,3,26,8],[27,3,27,8],[28,3,28,8],[29,3,29,8],[30,3,30,8],[31,3,31,8],[20,3,20,8],[10,0,10,2],[10,5,10,7],[11,0,11,2],[11,5,11,7],[12,5,12,7],[14,0,14,8],[15,3,15,8],[16,3,16,8],[17,3,17,8],[18,3,18,8],[19,3,19,8],[6,0,6,3],[6,4,6,8],[7,0,7,3],[7,4,7,8],[9,0,9,2],[9,5,9,7],[0,0,0,8],[3,0,3,8],[4,0,4,3],[4,4,4,8],[5,0,5,3],[5,4,5,8]]}
["Příloha č. 12 Monitorovací zprávy OP VK"]
[null,null,null,null,null,null,null,null,null,null,"Soubor uložte a zašlete na adresu"]
[null,null,null,null,null,null,null,null,null,null,"david.fojtik@vsb.cz"]
["PRACOVNÍ VÝKAZ "]
["Registrační číslo projektu",null,null,null,"CZ.1.07/2.3.00/09.0147"]
["Název projektu",null,null,null,"Vzdělávání lidských zdrojů pro rozvoj týmů ve vývoji a výzkumu"]
["Název příjemce podpory",null,null,null,"Vysoká škola báňská - Technická univerzita Ostrava"]
["Pořadové číslo Monitorovací zprávy",null,null,null,{"$f":"CEILING(((YEAR(D12) - 2009)*12 + MONTH(D12)-8)/6,1)","v":3}]
[null,null,null,"             ",null,null,null,null,null,null,"Dvě podepsaná vyhotovení předejte"]
["Zaměstnanec",null,null,null,null,"Druh pracovního poměru",null,null,null,null,"Tereze Fittlové, A 754, Klapka: 1280"]
["Pracovní pozice",null,null,null,null,"Výše měsíčního úvazku pro projekt  v hodinách*"]
["Vykazovaný měsíc a rok",null,null,"Září 2010",null,"Další úvazek v projektech příjemce/partnera*"]
[null,null,null,null,null,"Úvazek v další činnosti pro příjemce/partnera*",null,null,"HPP 100%"]
[]
["Přehled odpracovaných hodin "]
["Den v měsíci","Název dne","Počet odprac. hodin","Detailní popis vykonaných aktivit",null,null,null,null,null,null,"Pracovní role v projektu CZ.1.07/2.3.00/09.0147","Zkratka"]
["1.",{"$f":"DATEVALUE(D12)","v":"2010-09-01"},null,null,null,null,null,null,null,null,null,"xxxx",null,"Září 2010"]
["2.",{"$f":"B17+1","v":"2010-09-02"},null,null,null,null,null,null,null,null,"Administrativní pracovník","AdmP",null,"Říjen 2010"]
["3.",{"$f":"B18+1","v":"2010-09-03"},null,null,null,null,null,null,null,null,"Finanční manažer","FiMa",null,"Listopad 2010"]
["4.","2010-09-04",null,null,null,null,null,null,null,null,"Grafik","Graf",null,"Prosinec 2010"]
["5.","2010-09-05",null,null,null,null,null,null,null,null,"Koordinátor akademických týmů","KoAT",null,"Leden 2011"]
["6.","2010-09-06",null,null,null,null,null,null,null,null,"Koordinátor IT podpory tvorby týmů","KoIT",null,"Únor 2011"]
["7.","2010-09-07",null,null,null,null,null,null,null,null,"Koordinátor studentských týmů","KoST",null,"Březen 2011"]
["8.","2010-09-08",null,null,null,null,null,null,null,null,"Manažer projektu","MaPr",null,"Duben 2011"]
["9.","2010-09-09",null,null,null,null,null,null,null,null,"Organizátor VaV činností","OVVC",null,"Květen 2011"]
["10.","2010-09-10",null,null,null,null,null,null,null,null,"Programátor","Prog",null,"Červen 2011"]
["11.","2010-09-11",null,null,null,null,null,null,null,null,"Tvůrce kurzu","Tkur",null,"Červenec 2011"]
["12.","2010-09-12",null,null,null,null,null,null,null,null,"Tvůrce případové studie","TStu",null,"Srpen 2011"]
["13.","2010-09-13",null,null,null,null,null,null,null,null,"Tvůrce webového portálu","TWeb",null,"Září 2011"]
["14.","2010-09-14",null,null,null,null,null,null,null,null,"Týmový trenér","TymT",null,"Říjen 2011"]
["15.","2010-09-15",null,null,null,null,null,null,null,null,"Věcný manažer VŠB","MVSB",null,"Listopad 2011"]
["16.","2010-09-16",null,null,null,null,null,null,null,null,"Odborný konzultant ","OdbK",null,"Prosinec 2011"]
["17.","2010-09-17",null,null,null,null,null,null,null,null,"IT specialista","ITSp",null,"Leden 2012"]
["18.","2010-09-18",null,null,null,null,null,null,null,null,null,null,null,"Únor 2012"]
["19.","2010-09-19",null,null,null,null,null,null,null,null,null,null,null,"Březen 2012"]
["20.","2010-09-20",null,null,null,null,null,null,null,null,null,null,null,"Duben 2012"]
["21.","2010-09-21",null,null,null,null,null,null,null,null,null,null,null,"Květen 2012"]
["22.","2010-09-22",null,null,null,null,null,null,null,null,null,null,null,"Červen 2012"]
["23.","2010-09-23",null,null,null,null,null,null,null,null,null,null,null,"Červenec 2012"]
["24.","2010-09-24",null,null,null,null,null,null,null,null,null,null,null,"Srpen 2012"]
["25.","2010-09-25"]
["26.","2010-09-26"]
["27.","2010-09-27"]
["28.","2010-09-28"]
["29.","2010-09-29"]
["30.","2010-09-30"]
["31.","2010-10-01"]
["Celkem",null,{"$f":"SUM(C17:C31,C32:C47)","v":0},null,null,null,null,"hodin"]
[]
["Dovolená",null,null,null,null,"Ppracovní neschopnost"]
["Termíny dovolené",null,null,null,null,"Termíny neschopnosti"]
["Počet dní celkem",null,null,null,null,"Počet dní celkem"]
["Počet hodin dovolené celkem",null,null,null,null,"Počet hodin celkem"]
["Počet hodin dovolené odpovídajících zapojení do projektu",null,null,null,null,"Počet hodin neschopnosti odpovídajících zapojení do projektu"]
[]
["Součet hodin souvisejících s projektem",null,null,null,null,{"$f":"SUM(C48,H54,D54)","v":0},null,null,"hodin"]
["Počet hodin proplacených v daném měsíci za projekt",null,null,null,null,null,null,null,"hodin"]
[]
["* Svým podpisem strvrzuji, že všechny zde uvedené informace jsou pravdivé a že součet mých pracovních úvazků na dalších činnostech (např. na kmenových činnostech, na dalších projektech) u VŠB - TU Ostrava nepřekračuje 1,5 úvazku."]
[]
[]
[]
["Datum",null,null,null,null,"Datum"]
[]
["Podpis pracovníka",null,null,null,null,"Podpis nadřízeného pracovníka"]
[]
["Platné od 28. 6. 2010",null,null,"Tento projekt je spolufinancován z Evropského sociálního fondu a státního rozpočtu České republiky."]

{"sheet":"List1","index":1,"n_rows":1,"n_cols":1,"rows_kept":1,"cut":false,"hidden":false,"merged":[]}
[{"$f":"CEILING(2.01,1)","v":3}]